bitfinex/quotes_SOLUSD_20251006
["timestamp","ask_amount","ask_price","bid_price","bid_amount"]
[1759716872122,31.32,231.4,231.31,0.2]
[1759716872498,31.32,231.4,231.31,4.52314008]
[1759716873032,0.7,231.39,231.31,0.2]
[1759716874218,0.7,231.39,231.31,4.52320241]
[1759716875811,0.7,231.39,231.31,85.12320241]
[1759716876423,0.71,231.38,231.31,80.8]
[1759716876725,0.71,231.37,231.31,80.8]
[1759716877509,0.71,231.36,231.31,80.8]
[1759716877821,0.71,231.35,231.31,80.8]
[1759716878619,0.71,231.34,231.31,80.8]
[1759716878819,5.03228155,231.36,231.31,80.8]
[1759716879023,0.71,231.35,231.31,80.8]
[1759716881333,0.71,231.37,231.31,80.8]
[1759716882713,0.71,231.36,231.31,80.8]
[1759716882927,0.71,231.35,231.31,80.8]
[1759716887529,0.71,231.35,231.31,0.2]
[1759716888735,0.65,231.34,231.31,0.2]
[1759716890037,4.32208151,231.37,231.31,0.2]
[1759716890328,0.65,231.36,231.31,0.2]
[1759716890559,1.35489461,231.4,231.31,4.5231]
[1759716890733,10.80310831,231.42,231.31,4.5231]
[1759716890734,0.65,231.41,231.31,25.3231]
[1759716890923,0.65,231.41,231.31,55.9231]
[1759716891118,1.35489461,231.45,231.31,55.9231]
[1759716891321,20.8,231.43,231.31,55.9231]
[1759716892037,25.77096251,231.43,231.31,66.73110657]
[1759716892239,0.65,231.42,231.31,55.9231]
[1759716892419,0.65,231.41,231.31,55.9231]
[1759716892917,0.65,231.4,231.31,55.9231]
[1759716893448,20.8,231.43,231.32,10.87647521]
[1759716893943,21.45,231.43,231.32,10.87647521]
[1759716894142,0.65,231.42,231.32,10.87647521]
[1759716894311,0.65,231.41,231.32,10.87647521]
[1759716894514,0.65,231.41,231.33,4.32282885]
[1759716896543,4.97138093,231.41,231.31,55.92318097]
[1759716896738,0.65,231.41,231.31,55.92318097]
[1759716897535,4.97096098,231.43,231.31,55.92318097]
[1759716897736,0.65,231.47,231.35,20.8]
[1759716897942,4.32021428,231.47,231.35,51.4]
[1759716898117,0.65,231.46,231.35,51.4]
[1759716898630,4.32021428,231.47,231.36,4.32226832]
[1759716898830,0.65,231.45,231.35,25.1224483]
[1759716899027,4.32021428,231.47,231.35,25.1224483]
[1759716899028,6.43856496,231.47,231.35,25.1224483]
[1759716899240,0.65,231.44,231.35,55.7224483]
[1759716899936,0.65,231.43,231.35,55.7224483]
[1759716900134,4.97098045,231.43,231.35,55.7224483]
[1759716900450,2.11835068,231.41,231.32,80.6]
[1759716900618,0.65,231.4,231.32,20.8]
[1759716901539,0.65,231.39,231.32,20.8]
[1759716901753,0.65,231.38,231.31,0.2]
[1759716901959,15.12793913,231.36,231.31,0.2]
[1759716902122,2.76835068,231.35,231.31,0.2]
[1759716902528,0.65,231.34,231.31,0.2]
[1759716903148,0.65,231.33,231.31,0.2]
[1759716903852,4.97294412,231.33,231.31,0.2]
[1759716904150,0.65,231.33,231.31,0.2]
[1759716904353,0.65,231.32,231.31,0.2]
[1759716905048,10.80567081,231.36,231.31,0.2]
[1759716905049,0.65,231.36,231.31,0.2]
[1759716905350,0.65,231.4,231.31,4.52319039]
[1759716905556,15.12140326,231.46,231.32,10.87647521]
[1759716905557,0.65,231.43,231.32,10.87647521]
[1759716905848,21.45,231.43,231.32,10.87647521]
[1759716906024,4.3210216,231.43,231.32,10.87647521]
[1759716906346,0.65,231.42,231.32,26.00700671]
[1759716906538,4.97077553,231.44,231.32,26.00700671]
[1759716907130,4.32043127,231.46,231.32,26.00700671]
[1759716907330,0.65,231.45,231.32,26.00700671]
[1759716907641,0.65,231.44,231.32,26.00700671]
[1759716907854,0.65,231.43,231.32,26.00700671]
[1759716908223,4.3207907,231.44,231.32,26.00700671]
[1759716908422,0.65,231.43,231.32,15.19946738]
[1759716908635,0.65,231.42,231.32,15.19948492]
[1759716908836,0.65,231.43,231.32,26.00702425]
[1759716909743,0.65,231.43,231.32,15.19948492]
[1759716910563,4.97108206,231.43,231.32,15.19948492]
[1759716911134,0.65,231.43,231.32,26.00702425]
[1759716911329,4.32096303,231.43,231.32,15.19948492]
[1759716911529,0.65,231.42,231.32,15.19948492]
[1759716912456,4.97116303,231.42,231.32,15.19948492]
[1759716913059,4.97116303,231.42,231.34,20.8]
[1759716913936,4.97116303,231.42,231.34,25.12253247]
[1759716914953,23.56835068,231.47,231.34,116.52913746]
[1759716915254,25.77022599,231.47,231.35,10.87647521]
[1759716915426,0.65,231.5,231.39,10.87647521]
[1759716915626,2.90747874,231.55,231.42,20.8]
[1759716915830,0.65,231.56,231.44,4.32077428]
[1759716916030,0.65,231.56,231.46,20.8]
[1759716917158,0.65,231.55,231.46,20.8]
[1759716917457,0.65,231.55,231.47,20.8]
[1759716917846,4.31834866,231.57,231.47,20.8]
[1759716918044,0.72,231.56,231.47,25.1201244]
[1759716918635,33.76988824,231.61,231.47,25.1201244]
[1759716918636,0.72,231.63,231.48,41.45647521]
[1759716918838,4.83639142,231.75,231.48,41.45647521]
[1759716918839,20.18234828,231.67,231.52,10.87647521]
[1759716919042,0.72,231.66,231.55,20.8]
[1759716920160,0.72,231.66,231.56,4.31853515]
[1759716921151,5.03668219,231.66,231.56,4.31853515]
[1759716922548,4.31668219,231.66,231.55,20.8]
[1759716922851,2.83835068,231.65,231.52,33.92945569]
[1759716923162,0.72,231.64,231.52,20.8]
[1759716923662,0.72,231.63,231.52,33.9032191]
[1759716923861,0.72,231.62,231.52,33.9032191]
[1759716924469,0.72,231.62,231.52,38.22249261]
[1759716924672,5.03760286,231.61,231.52,33.9032191]
[1759716925741,33.71066995,231.65,231.52,38.22248301]
[1759716925952,4.31737926,231.63,231.52,38.22248301]
[1759716926649,5.03737926,231.63,231.52,38.22248301]
[1759716928175,4.31760286,231.61,231.52,38.22248301]
[1759716928957,4.31760286,231.61,231.52,33.9032191]
[1759716929353,4.31760286,231.61,231.52,38.22245723]
[1759716929562,4.31760286,231.61,231.52,33.9032191]
[1759716929953,4.31760286,231.61,231.52,38.22245776]
[1759716930542,5.03760286,231.61,231.52,33.9032191]
[1759716930848,0.72,231.61,231.52,38.22240946]
[1759716931062,4.31741645,231.62,231.52,38.22240946]
[1759716931364,5.03717237,231.64,231.52,38.22240946]
[1759716931566,0.72,231.63,231.52,38.22240946]
[1759716931969,0.72,231.62,231.52,33.9032191]
[1759716932343,5.03758665,231.62,231.52,38.22247485]
[1759716933467,5.03758665,231.62,231.52,33.9032191]
[1759716934252,4.31778929,231.6,231.52,13.1032191]
[1759716934460,5.00778929,231.6,231.5,34.87962574]
[1759716934763,5.00778929,231.6,231.5,30.56]
[1759716934980,5.00778929,231.6,231.49,20.8]
[1759716935147,5.00778929,231.6,231.49,51.36]
[1759716935580,5.00778929,231.6,231.49,64.35865762]
[1759716935775,5.00778929,231.6,231.5,30.56]
[1759716935953,5.00778929,231.6,231.5,34.87956995]
[1759716936150,2.11835068,231.56,231.43,15.19740036]
[1759716936362,15.11226251,231.6,231.43,15.19740036]
[1759716936363,2.80835068,231.57,231.43,15.19740036]
[1759716936560,2.80835068,231.57,231.46,20.8]
[1759716936860,2.80835068,231.57,231.43,15.19740036]
[1759716936861,0.69,231.56,231.43,15.19740036]
[1759716937062,2.11835068,231.54,231.46,20.8]
[1759716937250,0.69,231.53,231.46,20.8]
[1759716937659,0.69,231.53,231.43,43.55813907]
[1759716937866,0.69,231.53,231.43,64.35813907]
[1759716938167,4.31928127,231.52,231.44,4.32077428]
[1759716939474,4.31903628,231.54,231.44,4.32077428]
[1759716939678,5.00903628,231.54,231.44,4.32077428]
[1759716940352,5.00903628,231.54,231.43,64.35813907]
[1759716940554,0.69,231.53,231.43,64.35813907]
[1759716940869,0.69,231.52,231.43,64.35813907]
[1759716941060,0.69,231.51,231.43,64.35813907]
[1759716941668,5.00950564,231.51,231.43,68.67908568]
[1759716942772,21.49,231.56,231.43,79.48148813]
[1759716943359,21.49,231.56,231.44,10.87647521]
[1759716943862,10.79377513,231.62,231.49,20.8]
[1759716944047,0.69,231.6,231.49,51.36]
[1759716944666,12.91212581,231.62,231.43,17.31909342]
[1759716944667,2.11835068,231.55,231.43,17.31909342]
[1759716944860,10.87647521,231.58,231.44,30.56]
[1759716945072,2.11835068,231.55,231.44,30.56]
[1759716945677,0.69,231.54,231.44,30.56]
[1759716946061,41.43647521,231.58,231.44,30.56]
[1759716946062,0.69,231.56,231.45,4.32058759]
[1759716947279,5.00871996,231.56,231.45,4.32058759]
[1759716947451,4.31871996,231.56,231.46,10.87647521]
[1759716948566,4.31831121,231.58,231.46,10.87647521]
[1759716948771,4.31831121,231.58,231.49,20.8]
[1759716948970,12.91157344,231.63,231.49,51.36]
[1759716949172,0.69,231.61,231.49,51.36]
[1759716949476,5.00793664,231.6,231.5,4.31965442]
[1759716949856,4.31793664,231.6,231.5,4.31965442]
[1759716950193,2.11835068,231.57,231.44,4.3206267]
[1759716950357,0.69,231.56,231.44,34.8806267]
[1759716950555,20.8,231.59,231.44,34.8806267]
[1759716950556,2.80835068,231.55,231.47,20.8]
[1759716950874,0.69,231.54,231.44,51.36]
[1759716952380,4.31909471,231.53,231.44,55.6806415]
[1759716952554,0.69,231.52,231.44,20.8]
[1759716952759,0.69,231.51,231.44,20.8]
[1759716954477,2.11835068,231.5,231.36,10.80554942]
[1759716954682,2.80835068,231.5,231.37,45.73855672]
[1759716954865,2.80835068,231.5,231.4,20.8]
[1759716955979,4.31984102,231.49,231.42,20.8]
[1759716956480,5.00984102,231.49,231.42,20.8]
[1759716957086,5.00984102,231.49,231.42,25.12112078]
[1759716957468,4.31984102,231.49,231.42,20.8]
[1759716958296,5.00965799,231.5,231.42,25.12110004]
[1759716958477,0.69,231.52,231.42,25.12110004]
[1759716959187,4.31946784,231.51,231.42,25.12110004]
[1759716960195,4.31921938,231.53,231.42,25.12110004]
[1759716960363,4.31921938,231.53,231.46,20.8]
[1759716960986,0.69,231.52,231.45,20.8]
[1759716962365,0.69,231.52,231.45,25.12055662]
[1759716962792,5.00928198,231.52,231.45,25.12055662]
[1759716963792,1.35484606,231.5,231.35,92.087051]
[1759716963977,1.35484606,231.48,231.36,10.87647521]
[1759716964177,0.69,231.47,231.37,30.54]
[1759716964480,0.69,231.47,231.37,51.34]
[1759716964662,15.11748515,231.52,231.37,51.34]
[1759716964866,1.35484606,231.49,231.38,10.87647521]
[1759716965273,2.04484606,231.49,231.38,10.87647521]
[1759716965687,25.80928198,231.52,231.41,20.8]
[1759716965873,25.80928198,231.52,231.42,4.32114769]
[1759716966667,0.69,231.51,231.41,20.8]
[1759716966889,1.35484606,231.49,231.41,20.8]
[1759716967072,0.69,231.48,231.41,20.8]
[1759716967279,0.69,231.47,231.41,20.8]
[1759716967796,4.32058759,231.45,231.36,10.87647521]
[1759716967971,0.69,231.44,231.35,13.10506778]
[1759716968167,2.04484606,231.43,231.34,30.54]
[1759716968372,5.01058759,231.45,231.34,34.86261985]
[1759716968772,0.69,231.44,231.34,34.86261985]
[1759716968977,1.35484606,231.43,231.33,4.32282066]
[1759716969182,0.69,231.42,231.32,55.66300655]
[1759716969495,0.69,231.41,231.32,55.66300655]
[1759716970389,0.69,231.41,231.32,66.47054588]
[1759716970886,0.69,231.41,231.32,79.42947795]
[1759716971784,5.01137427,231.41,231.32,68.62193862]
[1759716972493,0.69,231.4,231.32,64.31893207]
[1759716972787,0.69,231.39,231.32,68.64190657]
[1759716973173,4.32137427,231.41,231.32,68.64190657]
[1759716973371,0.69,231.42,231.32,68.64190657]
[1759716973372,5.01095504,231.44,231.32,68.64190657]
[1759716973789,5.01095504,231.44,231.34,15.12924698]
[1759716974185,0.69,231.43,231.34,15.12924698]
[1759716974386,1.35484606,231.45,231.34,15.12924698]
[1759716974577,2.04484606,231.45,231.34,15.12924698]
[1759716974773,0.69,231.45,231.34,15.12924698]
[1759716974999,0.69,231.44,231.34,15.12924698]
[1759716975585,0.69,231.5,231.41,20.8]
[1759716975799,0.69,231.54,231.43,4.32096098]
[1759716976103,2.04484606,231.54,231.43,25.12096098]
[1759716976578,2.04484606,231.54,231.43,4.32096098]
[1759716977289,5.00892009,231.54,231.43,15.12336343]
[1759716977488,35.56860066,231.56,231.44,30.56]
[1759716977683,0.71,231.55,231.44,30.56]
[1759716978001,1.35484606,231.55,231.44,51.36]
[1759716978299,0.71,231.54,231.44,51.36]
[1759716979503,0.71,231.58,231.48,20.8]
[1759716979883,4.3180208,231.59,231.48,20.8]
[1759716980086,32.62484606,231.61,231.48,20.8]
[1759716980087,4.31779611,231.6,231.48,20.8]
[1759716980331,4.31779611,231.6,231.49,41.43647521]
[1759716980622,0.71,231.59,231.49,41.43647521]
[1759716981297,4.31779611,231.6,231.45,25.12058759]
[1759716981298,1.35484606,231.55,231.45,25.12058759]
[1759716981499,5.02890818,231.54,231.47,20.8]
[1759716981804,0.71,231.53,231.43,34.86078199]
[1759716982006,0.71,231.53,231.43,55.66078199]
[1759716982986,5.02916207,231.53,231.43,55.66078199]
[1759716983201,0.71,231.52,231.43,20.8]
[1759716983588,0.71,231.52,231.43,25.12089636]
[1759716984094,5.67400813,231.53,231.33,4.32282885]
[1759716984095,1.35484606,231.47,231.33,4.32282885]
[1759716984296,1.35484606,231.45,231.33,4.32282885]
[1759716984504,0.71,231.44,231.33,4.32282885]
[1759716984813,0.71,231.44,231.34,20.8]
[1759716985021,4.32096098,231.43,231.35,4.32245515]
[1759716985217,4.32096098,231.43,231.32,26.00703027]
[1759716985397,4.32096098,231.43,231.35,20.8]
[1759716985714,1.35484606,231.41,231.31,0.2]
[1759716985907,2.06484606,231.41,231.31,0.2]
[1759716986221,2.06484606,231.41,231.33,20.8]
[1759716987222,1.35484606,231.35,231.31,0.2]
[1759716987519,2.06484606,231.34,231.31,0.2]
[1759716987702,0.71,231.34,231.31,0.2]
[1759716988141,20.8,231.37,231.31,0.2]
[1759716988142,0.71,231.33,231.31,0.2]
[1759716988297,0.71,231.32,231.31,0.2]
[1759716988800,2.06484606,231.32,231.31,0.2]
[1759716989124,6.38786179,231.32,231.31,0.2]
[1759716989294,1.35484606,231.29,231.2,0.2]
[1759716989499,2.06484606,231.29,231.2,21.0]
[1759716989931,1.35484606,231.27,231.2,0.2]
[1759716990117,1.35484606,231.25,231.2,0.2]
[1759716990304,0.71,231.24,231.2,0.2]
[1759716990508,0.71,231.27,231.2,0.2]
[1759716991119,4.32395036,231.27,231.2,0.2]
[1759716992019,3.26427027,231.24,231.2,0.2]
[1759716992397,0.71,231.23,231.2,0.2]
[1759716994101,0.7,231.22,231.2,0.2]
[1759716994802,3.96427027,231.25,231.2,0.2]
[1759716995011,0.7,231.23,231.2,0.2]
[1759716996127,3.96427027,231.22,231.2,0.2]
[1759716997014,5.02507244,231.21,231.2,0.2]
[1759716997214,8.28934271,231.21,231.2,0.2]
[1759716998434,10.87647521,231.17,231.15,0.2]
[1759716998642,65.54074548,231.16,231.15,0.2]
[1759716998821,66.24074548,231.16,231.15,0.2]
[1759716999014,10.87647521,231.15,231.09,0.2]
[1759716999216,3.26427027,231.11,231.09,0.2]
[1759716999632,0.7,231.1,231.09,0.2]
[1759717000110,31.44,231.1,231.09,0.2]
[1759717001114,35.76713111,231.1,231.09,0.2]
[1759717003640,39.03140138,231.1,231.09,0.2]
[1759717005839,38.29140138,231.1,231.09,0.2]
[1759717006218,30.7,231.11,231.09,0.2]
[1759717007839,35.02703024,231.11,231.09,0.2]
[1759717008139,38.29130051,231.11,231.09,0.2]
[1759717008735,35.02703024,231.11,231.09,0.2]
[1759717009139,30.7,231.11,231.09,0.2]
[1759717009548,35.02695546,231.11,231.09,0.2]
[1759717009745,0.66,231.22,231.1,15.54495889]
[1759717009919,21.80427027,231.24,231.11,11.27647521]
[1759717010118,3.26427027,231.16,231.09,0.2]
[1759717010940,0.66,231.15,231.09,0.2]
[1759717011248,1.35982608,231.15,231.09,0.2]
[1759717011943,4.32638227,231.14,231.09,0.2]
[1759717012141,30.78,231.13,231.09,0.2]
[1759717013241,31.44,231.13,231.09,0.2]
[1759717013442,32.13982608,231.13,231.09,0.2]
[1759717013625,1.35982608,231.11,231.09,0.2]
[1759717013828,4.98713111,231.1,231.09,0.2]
[1759717014029,4.32713111,231.1,231.09,0.2]
[1759717015159,4.98713111,231.1,231.09,0.2]
[1759717015858,0.66,231.1,231.09,0.2]
[1759717016853,4.98713111,231.1,231.09,0.2]
[1759717017060,4.32713111,231.1,231.09,0.2]
[1759717017243,4.98713111,231.1,231.09,0.2]
[1759717022658,30.76,231.1,231.09,0.2]
[1759717023175,31.42,231.1,231.09,0.2]
[1759717023539,35.74713111,231.1,231.09,0.2]
[1759717023839,51.6325112,231.1,231.09,1e-08]
[1759717024030,35.74713111,231.1,231.09,1e-08]
[1759717024231,40.75603599,231.1,231.09,1e-08]
[1759717026060,9.99603599,231.1,231.09,1e-08]
[1759717026268,40.73603599,231.1,231.09,1e-08]
[1759717027539,9.99603599,231.1,231.09,1e-08]
[1759717027836,40.71603599,231.1,231.09,1e-08]
[1759717029658,35.02713111,231.1,231.09,1e-08]
[1759717031368,4.32694293,231.12,231.09,1e-08]
[1759717031566,30.74,231.11,231.09,1e-08]
[1759717032959,4.32713111,231.1,231.09,1e-08]
[1759717033190,30.74,231.11,231.09,1e-08]
[1759717033344,10.81548777,231.15,231.09,0.40000001]
[1759717033345,4.32662081,231.13,231.09,0.40000001]
[1759717033545,30.72,231.12,231.09,1e-08]
[1759717034748,31.38,231.12,231.09,1e-08]
[1759717035163,4.32694387,231.11,231.09,1e-08]
[1759717035365,30.72,231.1,231.09,1e-08]
[1759717035662,34.27759535,231.1,231.09,1e-08]
[1759717036868,33.61759535,231.1,231.09,1e-08]
[1759717037062,37.94472646,231.1,231.09,1e-08]
[1759717037568,38.63472646,231.1,231.09,1e-08]
[1759717038172,37.94472646,231.1,231.09,1e-08]
[1759717039979,30.72,231.1,231.09,1e-08]
[1759717040151,3.57025818,231.17,231.09,1e-08]
[1759717040152,14.38461711,231.18,231.09,0.40000001]
[1759717040345,2.90151449,231.17,231.09,0.40000001]
[1759717040666,2.90151449,231.16,231.09,0.40000001]
[1759717040970,2.90151449,231.15,231.09,0.40000001]
[1759717041198,30.72,231.15,231.09,21.20000001]
[1759717041347,0.69,231.23,231.1,11.27647521]
[1759717041672,37.96814194,231.22,231.11,4.72694387]
[1759717041975,45.87709886,231.22,231.12,0.4]
[1759717042684,30.72,231.21,231.13,20.8]
[1759717042845,35.04521522,231.21,231.13,25.52638457]
[1759717043457,35.73521522,231.21,231.13,20.8]
[1759717043968,35.73521522,231.21,231.13,25.12654956]
[1759717044270,30.72,231.2,231.14,0.4]
[1759717045272,35.04544613,231.2,231.14,0.4]
[1759717045471,2.12493501,231.17,231.09,1e-08]
[1759717045772,30.7,231.16,231.09,1e-08]
[1759717045969,31.39,231.16,231.09,1e-08]
[1759717046769,31.39,231.16,231.09,4.32731806]
[1759717048189,4.32619511,231.15,231.09,1e-08]
[1759717050186,0.69,231.14,231.09,1e-08]
[1759717050584,0.69,231.13,231.09,1e-08]
[1759717052672,5.01658162,231.13,231.09,1e-08]
[1759717053070,4.32658162,231.13,231.09,1e-08]
[1759717053254,5.01658162,231.13,231.09,1e-08]
[1759717053672,4.32619511,231.15,231.09,1e-08]
[1759717053882,0.69,231.12,231.09,1e-08]
[1759717055153,0.69,231.11,231.09,1e-08]
[1759717055554,0.69,231.1,231.09,1e-08]
[1759717055892,4.32644149,231.14,231.09,1e-08]
[1759717056188,0.69,231.11,231.09,1e-08]
[1759717056681,15.14239718,231.14,231.09,1e-08]
[1759717056883,0.69,231.1,231.09,1e-08]
[1759717057677,5.01713111,231.1,231.09,1e-08]
[1759717062686,35.65713111,231.1,231.09,1e-08]
[1759717064160,5.01713111,231.1,231.09,1e-08]
[1759717064365,35.65713111,231.1,231.09,1e-08]
[1759717064982,10.81642365,231.13,231.09,1e-08]
[1759717065286,0.69,231.11,231.09,1e-08]
[1759717065658,34.49141022,231.1,231.09,1e-08]
[1759717065884,38.81854133,231.1,231.09,1e-08]
[1759717071190,69.55854133,231.1,231.09,1e-08]
[1759717079405,38.81854133,231.1,231.09,1e-08]
[1759717079572,69.51854133,231.1,231.09,1e-08]
[1759717081001,38.81854133,231.1,231.09,1e-08]
[1759717081199,68.73418686,231.1,231.09,1e-08]
[1759717081796,68.73418686,231.1,231.04,0.2]
[1759717081797,12.23705575,231.05,231.04,1e-08]
[1759717081978,42.89705575,231.05,231.04,1e-08]
[1759717082311,43.58705575,231.05,231.04,1e-08]
[1759717083093,47.91512326,231.05,231.04,1e-08]
[1759717090902,16.56512326,231.05,231.04,1e-08]
[1759717091103,47.20512326,231.05,231.04,1e-08]
[1759717091805,36.32864805,231.05,231.04,1e-08]
[1759717092189,57.12864805,231.05,231.04,1e-08]
[1759717095505,57.81864805,231.05,231.04,1e-08]
[1759717095909,31.67647521,231.01,230.97,1e-08]
[1759717096098,22.16058054,230.98,230.97,1e-08]
[1759717096297,57.1899597,230.98,230.97,1e-08]
[1759717096501,57.8799597,230.98,230.97,1e-08]
[1759717097012,25.12937916,230.98,230.97,1e-08]
[1759717097220,55.82937916,230.98,230.97,1e-08]
[1759717098123,10.87647521,230.97,230.95,1e-08]
[1759717098309,68.06680981,230.96,230.95,1e-08]
[1759717098502,68.76680981,230.96,230.95,1e-08]
[1759717098913,10.87647521,230.95,230.94,1e-08]
[1759717099398,11.57647521,230.95,230.94,1e-08]
[1759717100417,15.90641675,230.95,230.94,1e-08]
[1759717102822,5.69052208,230.95,230.94,1e-08]
[1759717103022,57.21052208,230.95,230.94,1e-08]
[1759717103229,36.41052208,230.95,230.94,0.40000001]
[1759717103620,36.41052208,230.95,230.94,1e-08]
[1759717108202,31.62344791,230.98,230.94,1e-08]
[1759717108203,5.6903124,230.97,230.94,1e-08]
[1759717108411,30.68,230.96,230.94,0.40000001]
[1759717109707,4.32994154,230.95,230.94,0.40000001]
[1759717110611,30.68,230.96,230.94,0.40000001]
[1759717110612,35.00976115,230.96,230.94,0.40000001]
[1759717110929,30.68,230.96,230.94,0.40000001]
[1759717111232,30.68,230.96,230.95,0.4]
[1759717111404,35.00975406,230.96,230.95,0.4]
[1759717112208,30.68,230.96,230.95,0.4]
[1759717112610,35.00975406,230.96,230.94,1e-08]
[1759717112912,35.00975406,230.96,230.94,0.40000001]
[1759717113122,30.68,230.96,230.94,0.40000001]
[1759717113925,30.68,230.96,230.95,0.4]
[1759717114119,30.66,230.97,230.95,0.4]
[1759717114319,30.66,230.97,230.96,0.4]
[1759717114512,30.66,230.97,230.94,1e-08]
[1759717114834,30.66,230.97,230.95,0.4]
[1759717117219,30.66,230.97,230.94,1e-08]
[1759717117420,34.9896793,230.97,230.94,1e-08]
[1759717119934,30.66,230.97,230.94,1e-08]
[1759717120235,35.63958482,230.97,230.94,1e-08]
[1759717120441,34.98958482,230.97,230.94,1e-08]
[1759717120735,0.65,230.96,230.94,1e-08]
[1759717121028,34.98958482,230.97,230.94,1e-08]
[1759717121029,35.63958482,230.97,230.94,1e-08]
[1759717121439,30.66,230.97,230.95,0.4]
[1759717122243,30.66,230.97,230.94,1e-08]
[1759717122620,6.33883538,231.04,230.95,0.4]
[1759717122824,30.66,231.03,230.95,0.4]
[1759717123022,2.01058054,231.02,230.94,1e-08]
[1759717123266,30.66,231.01,230.94,1e-08]
[1759717123847,31.31,231.01,230.94,1e-08]
[1759717124150,4.32900432,231.0,230.94,1e-08]
[1759717124516,30.66,231.01,230.95,0.4]
[1759717125239,20.8,231.05,230.95,0.4]
[1759717125419,30.64,231.04,230.95,0.4]
[1759717125836,31.29,231.04,230.95,0.4]
[1759717126219,4.32844219,231.03,230.95,4.72979964]
[1759717127955,0.68,231.02,230.94,1e-08]
[1759717128145,30.64,231.01,230.94,1e-08]
[1759717128537,0.68,231.0,230.94,1e-08]
[1759717131529,0.68,231.0,230.94,20.80000001]
[1759717131732,0.68,230.99,230.94,20.80000001]
[1759717131929,0.68,230.98,230.94,1e-08]
[1759717133141,0.68,230.98,230.94,20.80000001]
[1759717133328,0.68,230.97,230.94,1e-08]
[1759717135349,0.68,230.96,230.94,1e-08]
[1759717136061,0.68,230.98,230.94,1e-08]
[1759717136550,0.68,230.97,230.94,1e-08]
[1759717137852,0.68,231.01,230.94,20.80000001]
[1759717138050,0.68,231.02,230.95,0.4]
[1759717138832,0.68,231.05,230.96,31.67647521]
[1759717139149,0.68,231.08,230.99,10.87647521]
[1759717139338,0.68,231.08,231.0,21.2]
[1759717139533,0.68,231.08,231.01,0.4]
[1759717140257,31.32,231.11,231.02,20.8]
[1759717140453,31.32,231.11,231.03,0.4]
[1759717140644,31.32,231.11,231.02,20.8]
[1759717140837,0.68,231.1,231.02,20.8]
[1759717141040,0.68,231.09,231.01,20.8]
[1759717141263,2.12499584,231.03,230.94,1e-08]
[1759717141441,2.12499584,230.96,230.94,1e-08]
[1759717141839,0.68,230.95,230.94,1e-08]
[1759717142665,2.80499584,230.95,230.94,1e-08]
[1759717143265,7.13493738,230.95,230.94,1e-08]
[1759717144374,37.87493738,230.95,230.94,1e-08]
[1759717145349,48.75141259,230.95,230.94,1e-08]
[1759717146037,18.01141259,230.95,230.94,1e-08]
[1759717146241,5.00994154,230.95,230.94,1e-08]
[1759717146551,37.87493738,230.95,230.94,1e-08]
[1759717148968,5.00994154,230.95,230.94,1e-08]
[1759717149269,37.87493738,230.95,230.94,1e-08]
[1759717151067,5.00936074,230.99,230.94,1e-08]
[1759717151270,33.52499584,230.98,230.94,1e-08]
[1759717151768,0.68,230.97,230.94,1e-08]
[1759717152150,4.32975406,230.96,230.94,1e-08]
[1759717152346,30.72,230.95,230.94,1e-08]
[1759717152974,0.68,230.97,230.94,1e-08]
[1759717153161,30.72,230.96,230.94,1e-08]
[1759717154671,35.04976459,230.96,230.94,1e-08]
[1759717154980,35.72976459,230.96,230.94,1e-08]
[1759717155269,35.04976459,230.96,230.94,1e-08]
[1759717155771,35.72976459,230.96,230.94,1e-08]
[1759717156665,31.4,230.96,230.94,1e-08]